Workbook

Sheet Sheet1
A1: wavelength l (mm): | C1: 0.000633 | E1: focal length f (mm): | G1: 500 | H1: 0 | I1: original image size L (mm): | K1: 10.24
A2: m | B2: x(mm) | C2: kx''(1/mm)=m*2*p/L | D2: x'' (mm)=mfl/L | E2: mask | F2: object | G2: object^2 | H2: 0 | I2: trans^2 | J2: inv. trans | K2: inv trans^2
A3: 0 | B3: =A3*($K$1/1024) -> 0 | C3: =A3*2*PI()/10.24 -> 0 | D3: =A3*$G$1*$C$1/$K$1 -> 0 | E3: 1 | F3: 0 | G3: =IMABS(F3)^2 -> 0 | H3: 99.55+2.94i | I3: =IMABS(H3)^2 -> 9918.8461 | J3: 0 | K3: =IMABS(J3)^2 -> 0
A4: =A3+1 -> 1 | B4: =A4*($K$1/1024) -> 0.01 | C4: =A4*2*PI()/$K$1 -> 0.6135923152 | D4: 0.03090820312 | E4: 1 | F4: 0 | G4: 0 | H4: -97.9845487375388-3.2070627758085i | I4: 9611.257043 | J4: 0 | K4: 0
A5: =A4+1 -> 2 | B5: 0.02 | C5: =A5*2*PI()/$K$1 -> 1.22718463 | D5: 0.06181640625 | E5: 1 | F5: 0 | G5: 0 | H5: 93.3941218205803+3.38004060044109i | I5: 8733.886665 | J5: 0 | K5: 0
A6: 3 | B6: 0.03 | C6: 1.840776945 | D6: 0.09272460938 | E6: 1 | F6: 0 | G6: 0 | H6: -86.0358920861831-3.43695440486091i | I6: 7413.987383 | J6: 0 | K6: 0
A7: 4 | B7: 0.04 | C7: 2.454369261 | D7: 0.1236328125 | E7: 1 | F7: 0 | G7: 0 | H7: 76.3189547439381+3.36302899235358i | I7: 5835.892817 | J7: 0 | K7: 0
A8: 5 | B8: 0.05 | C8: 3.067961576 | D8: 0.1545410156 | E8: 1 | F8: 0 | G8: 0 | H8: -64.7771447873969-3.15239933131978i | I8: 4206.016108 | J8: 0 | K8: 0
A9: 6 | B9: 0.06 | C9: 3.681553891 | D9: 0.1854492188 | E9: 1 | F9: 0 | G9: 0 | H9: 52.0337989620935+2.80909730162152i | I9: 2715.407262 | J9: 0 | K9: 0
A10: 7 | B10: 0.07 | C10: 4.295146206 | D10: 0.2163574219 | E10: 1 | F10: 0 | G10: 0 | H10: -38.7610053968343-2.34721095212529i | I10: 1507.924939 | J10: 0 | K10: 0
A11: 8 | B11: 0.08 | C11: 4.908738521 | D11: 0.247265625 | E11: 1 | F11: 0 | G11: 0 | H11: 25.6362636700988+1.79018219160965i | I11: 660.4227672 | J11: 0 | K11: 0
A12: 9 | B12: 0.09 | C12: 5.522330836 | D12: 0.2781738281 | E12: 1 | F12: 0 | G12: 0 | H12: -13.2996362905329-1.16928659272282i | I12: 178.2475566 | J12: 0 | K12: 0
A13: 10 | B13: 0.1 | C13: 6.135923152 | D13: 0.3090820312 | E13: 1 | F13: 0 | G13: 0 | H13: 2.31439878835119+0.521413474915452i | I13: 5.628313763 | J13: 0 | K13: 0
A14: 11 | B14: 0.11 | C14: 6.749515467 | D14: 0.3399902344 | E14: 1 | F14: 0 | G14: 0 | H14: 6.86610254480693+0.113671242207412i | I14: 47.15628531 | J14: 0 | K14: 0
A15: 12 | B15: 0.12 | C15: 7.363107782 | D15: 0.3708984375 | E15: 1 | F15: 0 | G15: 0 | H15: -13.9231737256241-0.696348732463738i | I15: 194.3396682 | J15: 0 | K15: 0
A16: 13 | B16: 0.13 | C16: 7.976700097 | D16: 0.4018066406 | E16: 1 | F16: 0 | G16: 0 | H16: 18.6875218864921+1.19019926511008i | I16: 350.6400485 | J16: 0 | K16: 0
A17: 14 | B17: 0.14 | C17: 8.590292412 | D17: 0.4327148438 | E17: 1 | F17: 0 | G17: 0 | H17: -21.1432378317805-1.56481996429863i | I17: 449.4851675 | J17: 0 | K17: 0
A18: 15 | B18: 0.15 | C18: 9.203884727 | D18: 0.4636230469 | E18: 0.985+0.098i | F18: 0 | G18: 0 | H18: 21.4210299492803+1.79816517565863i | I18: 462.0939221 | J18: 0 | K18: 0
A19: 16 | B19: 0.16 | C19: 9.817477042 | D19: 0.49453125 | E19: 0.985+0.098i | F19: 0 | G19: 0 | H19: -19.7815201929189-1.87820768866986i | I19: 394.8362053 | J19: 0 | K19: 0
A20: 17 | B20: 0.17 | C20: 10.43106936 | D20: 0.5254394531 | E20: 0.985+0.098i | F20: 0 | G20: 0 | H20: 16.5901286164228+1.80377871745492i | I20: 278.4859852 | J20: 0 | K20: 0
A21: 18 | B21: 0.18 | C21: 11.04466167 | D21: 0.5563476563 | E21: 0.985+0.098i | F21: 0 | G21: 0 | H21: -12.2856574395712-1.58451702452006i | I21: 153.4480729 | J21: 0 | K21: 0
A22: 19 | B22: 0.19 | C22: 11.65825399 | D22: 0.5872558594 | E22: 0.985+0.098i | F22: 0 | G22: 0 | H22: 7.34509609731625+1.2399362722783i | I22: 55.48787864 | J22: 0 | K22: 0
A23: 20 | B23: 0.2 | C23: 12.2718463 | D23: 0.6181640625 | E23: 0.985+0.098i | F23: 0 | G23: 0 | H23: -2.24737678100005-0.797697424932816i | I23: 5.687023578 | J23: 0 | K23: 0
A24: 21 | B24: 0.21 | C24: 12.88543862 | D24: 0.6490722656 | E24: 0.985+0.098i | F24: 0 | G24: 0 | H24: -2.56119630004077+0.291242710203239i | I24: 6.644548804 | J24: 0 | K24: 0
A25: 22 | B25: 0.22 | C25: 13.49903093 | D25: 0.6799804687 | E25: 0.985+0.098i | F25: 0 | G25: 0 | H25: 6.69733611661258+0.242997053713932i | I25: 44.91335863 | J25: 0 | K25: 0
A26: 23 | B26: 0.23 | C26: 14.11262325 | D26: 0.7108886719 | E26: 0.985+0.098i | F26: 0 | G26: 0 | H26: -9.86487553678948-0.768574061959681i | I26: 97.90647545 | J26: 0 | K26: 0
A27: 24 | B27: 0.24 | C27: 14.72621556 | D27: 0.741796875 | E27: 0.985+0.098i | F27: 0 | G27: 0 | H27: 11.8710328881624+1.25191306314733i | I27: 142.4887081 | J27: 0 | K27: 0
A28: 25 | B28: 0.25 | C28: 15.33980788 | D28: 0.7727050781 | E28: 1 | F28: 0 | G28: 0 | H28: -12.6339479927673-1.66486827977136i | I28: 162.3884283 | J28: 0 | K28: 0
A29: 26 | B29: 0.26 | C29: 15.95340019 | D29: 0.8036132812 | E29: 1 | F29: 0 | G29: 0 | H29: 12.1813040338716+1.98673025046415i | I29: 152.3312651 | J29: 0 | K29: 0
A30: 27 | B30: 0.27 | C30: 16.56699251 | D30: 0.8345214844 | E30: 1 | F30: 0 | G30: 0 | H30: -10.6405504612906-2.20551773568025i | I30: 118.0856226 | J30: 0 | K30: 0
A31: 28 | B31: 0.28 | C31: 17.18058482 | D31: 0.8654296875 | E31: 1 | F31: 0 | G31: 0 | H31: 8.22187876338629+2.31845698378518i | I31: 72.97453319 | J31: 0 | K31: 0
A32: 29 | B32: 0.29 | C32: 17.79417714 | D32: 0.8963378906 | E32: 1 | F32: 0 | G32: 0 | H32: -5.19562739720503-2.33162609108976i | I32: 32.43102428 | J32: 0 | K32: 0
A33: 30 | B33: 0.3 | C33: 18.40776945 | D33: 0.9272460937 | E33: 1 | F33: 0 | G33: 0 | H33: 1.86616578190535+2.2588188913031i | I33: 8.584837509 | J33: 0 | K33: 0
A34: 31 | B34: 0.31 | C34: 19.02136177 | D34: 0.9581542969 | E34: 1 | F34: 0 | G34: 0 | H34: 1.45549550632504-2.11975367346722i | I34: 6.611822805 | J34: 0 | K34: 0
A35: 32 | B35: 0.32 | C35: 19.63495408 | D35: 0.9890625 | E35: 1 | F35: 0 | G35: 0 | H35: -4.4781109348821+1.93781052180505i | I35: 23.80858716 | J35: 0 | K35: 0
A36: 33 | B36: 0.33 | C36: 20.2485464 | D36: 1.019970703 | E36: 1 | F36: 0 | G36: 0 | H36: 6.95353703594321-1.7375218442031i | I36: 51.37065947 | J36: 0 | K36: 0
A37: 34 | B37: 0.34 | C37: 20.86213872 | D37: 1.050878906 | E37: 1 | F37: 0 | G37: 0 | H37: -8.69524901955834+1.54206003065109i | I37: 77.98530465 | J37: 0 | K37: 0
A38: 35 | B38: 0.35 | C38: 21.47573103 | D38: 1.081787109 | E38: 1 | F38: 0 | G38: 0 | H38: 9.59075030049094-1.37096249368713i | I38: 93.86202949 | J38: 0 | K38: 0
A39: 36 | B39: 0.36 | C39: 22.08932335 | D39: 1.112695313 | E39: 1 | F39: 0 | G39: 0 | H39: -9.60714093258098+1.23830808674794i | I39: 93.83056382 | J39: 0 | K39: 0
A40: 37 | B40: 0.37 | C40: 22.70291566 | D40: 1.143603516 | E40: 1 | F40: 0 | G40: 0 | H40: 8.78970359951914-1.15151268010721i | I40: 78.58487082 | J40: 0 | K40: 0
A41: 38 | B41: 0.38 | C41: 23.31650798 | D41: 1.174511719 | E41: 1 | F41: 0 | G41: 0 | H41: -7.25394838894558+1.11084996497582i | I41: 53.85375487 | J41: 0 | K41: 0
A42: 39 | B42: 0.39 | C42: 23.93010029 | D42: 1.205419922 | E42: 1 | F42: 0 | G42: 0 | H42: 5.17208229406938-1.10973225896616i | I42: 27.98194094 | J42: 0 | K42: 0
A43: 40 | B43: 0.4 | C43: 24.54369261 | D43: 1.236328125 | E43: 1 | F43: 0 | G43: 0 | H43: -2.75529464861331+1.13571198584938i | I43: 8.881490315 | J43: 0 | K43: 0
A44: 41 | B44: 0.41 | C44: 25.15728492 | D44: 1.267236328 | E44: 1 | F44: 0 | G44: 0 | H44: 0.233543404163916-1.17209462715999i | I44: 1.428348337 | J44: 0 | K44: 0
A45: 42 | B45: 0.42 | C45: 25.77087724 | D45: 1.298144531 | E45: 1 | F45: 0 | G45: 0 | H45: 2.16533087568509+1.19999490284105i | I45: 6.128645568 | J45: 0 | K45: 0
A46: 43 | B46: 0.43 | C46: 26.38446955 | D46: 1.329052734 | E46: 1 | F46: 0 | G46: 0 | H46: -4.23535308693667-1.20062530507526i | I46: 19.37971689 | J46: 0 | K46: 0
A47: 44 | B47: 0.44 | C47: 26.99806187 | D47: 1.359960937 | E47: 1 | F47: 0 | G47: 0 | H47: 5.80938215175252+1.15758389603107i | I47: 35.08892146 | J47: 0 | K47: 0
A48: 45 | B48: 0.45 | C48: 27.61165418 | D48: 1.390869141 | E48: 0.985+0.098i | F48: 0 | G48: 0 | H48: -6.77195991917799-1.05890856346211i | I48: 46.98072849 | J48: 0 | K48: 0
A49: 46 | B49: 0.46 | C49: 28.2252465 | D49: 1.421777344 | E49: 0.985+0.098i | F49: 0 | G49: 0 | H49: 7.06710455577754+0.898687656093092i | I49: 50.75160631 | J49: 0 | K49: 0
A50: 47 | B50: 0.47 | C50: 28.83883881 | D50: 1.452685547 | E50: 0.985+0.098i | F50: 0 | G50: 0 | H50: -6.70058213244362-0.678059919241378i | I50: 45.35756617 | J50: 0 | K50: 0
A51: 48 | B51: 0.48 | C51: 29.45243113 | D51: 1.48359375 | E51: 0.985+0.098i | F51: 0 | G51: 0 | H51: 5.73668281710383+0.405495829077075i | I51: 33.07395661 | J51: 0 | K51: 0
A52: 49 | B52: 0.49 | C52: 30.06602344 | D52: 1.514501953 | E52: 0.985+0.098i | F52: 0 | G52: 0 | H52: -4.29000114687153-9.63221589213486E-002i | I52: 18.4133878 | J52: 0 | K52: 0
A53: 50 | B53: 0.5 | C53: 30.67961576 | D53: 1.545410156 | E53: 0.985+0.098i | F53: 0 | G53: 0 | H53: 2.51313343800149-0.228474721438328i | I53: 6.368040376 | J53: 0 | K53: 0
A54: 51 | B54: 0.51 | C54: 31.29320807 | D54: 1.576318359 | E54: 0.985+0.098i | F54: 0 | G54: 0 | H54: -0.581525932321169+0.544060715427803i | I54: 0.634174472 | J54: 0 | K54: 0
A55: 52 | B55: 0.52 | C55: 31.90680039 | D55: 1.607226562 | E55: 0.985+0.098i | F55: 0 | G55: 0 | H55: -1.32308981656035-0.824014136675784i | I55: 2.42956596 | J55: 0 | K55: 0
A56: 53 | B56: 0.53 | C56: 32.5203927 | D56: 1.638134766 | E56: 0.985+0.098i | F56: 0 | G56: 0 | H56: 3.02916629842501+1.04282201053132i | I56: 10.26332621 | J56: 0 | K56: 0
A57: 54 | B57: 0.54 | C57: 33.13398502 | D57: 1.669042969 | E57: 0.985+0.098i | F57: 0 | G57: 0 | H57: -4.39026802744019-1.17837518697818i | I57: 20.66302143 | J57: 0 | K57: 0
A58: 55 | B58: 0.55 | C58: 33.74757733 | D58: 1.699951172 | E58: 1 | F58: 0 | G58: 0 | H58: 5.2971978063848+1.21422208827557i | I58: 29.53463988 | J58: 0 | K58: 0
A59: 56 | B59: 0.56 | C59: 34.36116965 | D59: 1.730859375 | E59: 1 | F59: 0 | G59: 0 | H59: -5.68635058520966-1.14136088624249i | I59: 33.63728765 | J59: 0 | K59: 0
A60: 57 | B60: 0.57 | C60: 34.97476196 | D60: 1.761767578 | E60: 1 | F60: 0 | G60: 0 | H60: 5.54368934226469+0.959390893205485i | I60: 31.65292241 | J60: 0 | K60: 0
A61: 58 | B61: 0.58 | C61: 35.58835428 | D61: 1.792675781 | E61: 1 | F61: 0 | G61: 0 | H61: -4.90414384183306-0.676902196696406i | I61: 24.50882341 | J61: 0 | K61: 0
A62: 59 | B62: 0.59 | C62: 36.20194659 | D62: 1.823583984 | E62: 1 | F62: 0 | G62: 0 | H62: 3.84664408076856+0.311052676574309i | I62: 14.89342445 | J62: 0 | K62: 0
A63: 60 | B63: 0.6 | C63: 36.81553891 | D63: 1.854492187 | E63: 1 | F63: 0 | G63: 0 | H63: -2.48537960561796+0.113643011394225i | I63: 6.190026518 | J63: 0 | K63: 0
A64: 61 | B64: 0.61 | C64: 37.42913122 | D64: 1.885400391 | E64: 1 | F64: 0 | G64: 0 | H64: 0.958191315325108-0.567214167191515i | I64: 1.239862508 | J64: 0 | K64: 0
A65: 62 | B65: 0.62 | C65: 38.04272354 | D65: 1.916308594 | E65: 1 | F65: 0 | G65: 0 | H65: 0.586771977651079+1.01666106299869i | I65: 1.377901071 | J65: 0 | K65: 0
A66: 63 | B66: 0.63 | C66: 38.65631585 | D66: 1.947216797 | E66: 1 | F66: 0 | G66: 0 | H66: -2.00488132300762-1.42869445117312i | I66: 6.060716954 | J66: 0 | K66: 0
A67: 64 | B67: 0.64 | C67: 39.26990817 | D67: =A67*$G$1*$C$1/$K$1 -> 1.978125 | E67: 1 | F67: 0 | G67: =IMABS(F67)^2 -> 0 | H67: 3.16808460668464+1.77254292562495i | I67: =IMABS(H67)^2 -> 13.1786685 | J67: 0 | K67: =IMABS(J67)^2 -> 0
A68: 65 | B68: =A68*($K$1/1024) -> 0.65 | C68: 39.88350049 | D68: 2.009033203 | E68: 1 | F68: 0 | G68: 0 | H68: -3.97604485537803-2.02257513318042i | I68: 19.89974286 | J68: 0 | K68: 0
A69: =A68+1 -> 66 | B69: 0.66 | C69: =A69*2*PI()/$K$1 -> 40.4970928 | D69: 2.039941406 | E69: 1 | F69: 0 | G69: 0 | H69: 4.36441813578389+2.1604988200966i | I69: 23.71590082 | J69: 0 | K69: 0
A70: 67 | B70: 0.67 | C70: 41.11068512 | D70: 2.070849609 | E70: 1 | F70: 0 | G70: 0 | H70: -4.30961327969924-2.17693574253038i | I70: 23.31181585 | J70: 0 | K70: 0
A71: 68 | B71: 0.68 | C71: 41.72427743 | D71: 2.101757812 | E71: 1 | F71: 0 | G71: 0 | H71: 3.8297101208528+2.07222721354332i | I71: 18.96080523 | J71: 0 | K71: 0
A72: 69 | B72: 0.69 | C72: 42.33786975 | D72: 2.132666016 | E72: 1 | F72: 0 | G72: 0 | H72: -2.98156677872551-1.856394401072i | I72: 12.33594063 | J72: 0 | K72: 0
A73: 70 | B73: 0.7 | C73: 42.95146206 | D73: 2.163574219 | E73: 1 | F73: 0 | G73: 0 | H73: 1.85448776955264+1.54825405425278i | I73: 5.836215504 | J73: 0 | K73: 0
A74: 71 | B74: 0.71 | C74: 43.56505438 | D74: 2.194482422 | E74: 1 | F74: 0 | G74: 0 | H74: -0.561123313457485-1.17376705937403i | I74: 1.692588483 | J74: 0 | K74: 0
A75: 72 | B75: 0.72 | C75: 44.17864669 | D75: 2.225390625 | E75: 1 | F75: 0 | G75: 0 | H75: -0.773499351632034+0.76376702405478i | I75: 1.181641314 | J75: 0 | K75: 0
A76: 73 | B76: 0.73 | C76: 44.79223901 | D76: 2.256298828 | E76: 1 | F76: 0 | G76: 0 | H76: 2.02376832547905-0.351272503315951i | I76: 4.219030607 | J76: 0 | K76: 0
A77: 74 | B77: 0.74 | C77: 45.40583132 | D77: 2.287207031 | E77: 1 | F77: 0 | G77: 0 | H77: -3.0750127300332-3.13757091089497E-002i | I77: 9.456687725 | J77: 0 | K77: 0
A78: 75 | B78: 0.75 | C78: 46.01942364 | D78: 2.318115234 | E78: 0.985+0.098i | F78: 0 | G78: 0 | H78: 3.83372447596475+0.355295100687208i | I78: 14.82367797 | J78: 0 | K78: 0
A79: 76 | B79: 0.76 | C79: 46.63301595 | D79: 2.349023437 | E79: 0.985+0.098i | F79: 0 | G79: 0 | H79: -4.23558379769369-0.597510515348142i | I79: 18.29718892 | J79: 0 | K79: 0
A80: 77 | B80: 0.77 | C80: 47.24660827 | D80: 2.379931641 | E80: 0.985+0.098i | F80: 0 | G80: 0 | H80: 4.25061772156721+0.742853239849283i | I80: 18.61958195 | J80: 0 | K80: 0
A81: 78 | B81: 0.78 | C81: 47.86020058 | D81: 2.410839844 | E81: 0.985+0.098i | F81: 0 | G81: 0 | H81: -3.88509688726119-0.785142273035703i | I81: 15.71042621 | J81: 0 | K81: 0
A82: 79 | B82: 0.79 | C82: 48.4737929 | D82: 2.441748047 | E82: 0.985+0.098i | F82: 0 | G82: 0 | H82: 3.18008102899812+0.72754597833321i | I82: 10.6422385 | J82: 0 | K82: 0
A83: 80 | B83: 0.8 | C83: 49.08738521 | D83: 2.47265625 | E83: 0.985+0.098i | F83: 0 | G83: 0 | H83: -2.20682885304319-0.582097552486865i | I83: 5.208931147 | J83: 0 | K83: 0
A84: 81 | B84: 0.81 | C84: 49.70097753 | D84: 2.503564453 | E84: 0.985+0.098i | F84: 0 | G84: 0 | H84: 1.05956654757622+0.368415222963427i | I84: 1.258411045 | J84: 0 | K84: 0
A85: 82 | B85: 0.82 | C85: 50.31456984 | D85: 2.534472656 | E85: 0.985+0.098i | F85: 0 | G85: 0 | H85: 0.15366368464834-0.111750652703888i | I85: 0.03610073636 | J85: 0 | K85: 0
A86: 83 | B86: 0.83 | C86: 50.92816216 | D86: 2.565380859 | E86: 0.985+0.098i | F86: 0 | G86: 0 | H86: -1.32119711076732-0.159450013165778i | I86: 1.770986112 | J86: 0 | K86: 0
A87: 84 | B87: 0.84 | C87: 51.54175447 | D87: 2.596289062 | E87: 0.985+0.098i | F87: 0 | G87: 0 | H87: 2.33803047964953+0.416244291105792i | I87: 5.639645834 | J87: 0 | K87: 0
A88: 85 | B88: 0.85 | C88: 52.15534679 | D88: 2.627197266 | E88: 1 | F88: 0 | G88: 0 | H88: -3.11525928701187-0.631900023216773i | I88: 10.10413806 | J88: 0 | K88: 0
A89: 86 | B89: 0.86 | C89: 52.7689391 | D89: 2.658105469 | E89: 1 | F89: 0 | G89: 0 | H89: 3.58782968479674+0.784360650074505i | I89: 13.48774348 | J89: 0 | K89: 0
A90: 87 | B90: 0.87 | C90: 53.38253142 | D90: 2.689013672 | E90: 1 | F90: 0 | G90: 0 | H90: -3.7199387147254-0.858243068746158i | I90: 14.57452521 | J90: 0 | K90: 0
A91: 88 | B91: 0.88 | C91: 53.99612373 | D91: 2.719921875 | E91: 1 | F91: 0 | G91: 0 | H91: 3.50764524034576+0.846186788912993i | I91: 13.01960721 | J91: 0 | K91: 0
A92: 89 | B92: 0.89 | C92: 54.60971605 | D92: 2.750830078 | E92: 1 | F92: 0 | G92: 0 | H92: -2.97851712745659-0.74943447089148i | I92: 9.433216305 | J92: 0 | K92: 0
A93: 90 | B93: 0.9 | C93: 55.22330836 | D93: 2.781738281 | E93: 1 | F93: 0 | G93: 0 | H93: 2.18841332349728+0.577596181300851i | I93: 5.122770223 | J93: 0 | K93: 0
A94: 91 | B94: 0.91 | C94: 55.83690068 | D94: 2.812646484 | E94: 1 | F94: 0 | G94: 0 | H94: -1.21575759227899-0.34762608071202i | I94: 1.598910415 | J94: 0 | K94: 0
A95: 92 | B95: 0.92 | C95: 56.45049299 | D95: 2.843554687 | E95: 1 | F95: 0 | G95: 0 | H95: 0.153880740717735+8.21136377707703E-002i | I95: 0.03042193187 | J95: 0 | K95: 0
A96: 93 | B96: 0.93 | C96: 57.06408531 | D96: 2.874462891 | E96: 1 | F96: 0 | G96: 0 | H96: 0.89782887489695+0.192944985078241i | I96: 0.8433244559 | J96: 0 | K96: 0
A97: 94 | B97: 0.94 | C97: 57.67767762 | D97: 2.905371094 | E97: 1 | F97: 0 | G97: 0 | H97: -1.84313448936812-0.45068190863834i | I97: 3.600258929 | J97: 0 | K97: 0
A98: 95 | B98: 0.95 | C98: 58.29126994 | D98: 2.936279297 | E98: 1 | F98: 0 | G98: 0 | H98: 2.59767288030447+0.66595774178742i | I98: 7.191404107 | J98: 0 | K98: 0
A99: 96 | B99: 0.96 | C99: 58.90486225 | D99: 2.9671875 | E99: 1 | F99: 0 | G99: 0 | H99: -3.09640475991054-0.817780891758179i | I99: 10.25648802 | J99: 0 | K99: 0
A100: 97 | B100: 0.97 | C100: 59.51845457 | D100: 2.998095703 | E100: 1 | F100: 0 | G100: 0 | H100: 3.29914164245748+0.891317959304101i | I100: 11.67878328 | J100: 0 | K100: 0
A101: 98 | B101: 0.98 | C101: 60.13204689 | D101: 3.029003906 | E101: 1 | F101: 0 | G101: 0 | H101: -3.19368610341157-0.879306637092157i | I101: 10.97281109 | J101: 0 | K101: 0
A102: 99 | B102: 0.99 | C102: 60.7456392 | D102: 3.059912109 | E102: 1 | F102: 0 | G102: 0 | H102: 2.7963493889647+0.782739561254653i | I102: 8.432251126 | J102: 0 | K102: 0
A103: 100 | B103: 1 | C103: 61.35923152 | D103: 3.090820312 | F103: 0 | G103: 0 | H103: -2.14985414044807-0.610756805801939i | I103: 4.994896701 | J103: 0 | K103: 0
A104: 101 | B104: 1.01 | C104: 61.97282383 | D104: 3.121728516 | F104: 0 | G104: 0 | H104: 1.31886807829556+0.379759638430875i | I104: 1.883630391 | J104: 0 | K104: 0
A105: 102 | B105: 1.02 | C105: 62.58641615 | D105: 3.152636719 | F105: 0 | G105: 0 | H105: -0.383625326124225-0.111831731531104i | I105: 0.159674727 | J105: 0 | K105: 0
A106: 103 | B106: 1.03 | C106: 63.20000846 | D106: 3.183544922 | F106: 0 | G106: 0 | H106: -0.567742970434326-0.167380662700725i | I106: 0.3503483667 | J106: 0 | K106: 0
A107: 104 | B107: 1.04 | C107: 63.81360078 | D107: 3.214453125 | F107: 0 | G107: 0 | H107: 1.4474420479689+0.431127133353513i | I107: 2.280959087 | J107: 0 | K107: 0
A108: 105 | B108: 1.05 | C108: 64.42719309 | D108: 3.245361328 | F108: 0 | G108: 0 | H108: -2.17604755126912-0.654115910961251i | I108: 5.16305057 | J108: 0 | K108: 0
A109: 106 | B109: 1.06 | C109: 65.04078541 | D109: 3.276269531 | F109: 0 | G109: 0 | H109: 2.68961035941373+0.814937173599182i | I109: 7.898126482 | J109: 0 | K109: 0
A110: 107 | B110: 1.07 | C110: 65.65437772 | D110: 3.307177734 | F110: 0 | G110: 0 | H110: -2.94520182905225-0.898116341646996i | I110: 9.480826777 | J110: 0 | K110: 0
A111: 108 | B111: 1.08 | C111: 66.26797004 | D111: 3.338085938 | F111: 0 | G111: 0 | H111: 2.92442402547321+0.895601941949392i | I111: 9.354358719 | J111: 0 | K111: 0
A112: 109 | B112: 1.09 | C112: 66.88156235 | D112: 3.368994141 | F112: 0 | G112: 0 | H112: -2.63460478343327-0.807546152307924i | I112: 7.593273153 | J112: 0 | K112: 0
A113: 110 | B113: 1.1 | C113: 67.49515467 | D113: 3.399902344 | F113: 0 | G113: 0 | H113: 2.10761445233354+0.642303060313787i | I113: 4.854591901 | J113: 0 | K113: 0
A114: 111 | B114: 1.11 | C114: 68.10874698 | D114: 3.430810547 | F114: 0 | G114: 0 | H114: -1.39645973060436-0.415643690417116i | I114: 2.122859457 | J114: 0 | K114: 0
A115: 112 | B115: 1.12 | C115: 68.7223393 | D115: 3.46171875 | F115: 0 | G115: 0 | H115: 0.5700101201105+0.149261007296065i | I115: 0.3471903853 | J115: 0 | K115: 0
A116: 113 | B116: 1.13 | C116: 69.33593161 | D116: 3.492626953 | F116: 0 | G116: 0 | H116: 0.293623674884839+0.131294584327047i | I116: 0.1034531303 | J116: 0 | K116: 0
A117: 114 | B117: 1.14 | C117: 69.94952393 | D117: 3.523535156 | F117: 0 | G117: 0 | H117: -1.11442687916987-0.399054589542476i | I117: 1.401191834 | J117: 0 | K117: 0
A118: 115 | B118: 1.15 | C118: 70.56311624 | D118: 3.554443359 | F118: 0 | G118: 0 | H118: 1.81784755801542+0.628216115627318i | I118: 3.699225232 | J118: 0 | K118: 0
A119: 116 | B119: 1.16 | C119: 71.17670856 | D119: 3.585351562 | F119: 0 | G119: 0 | H119: -2.34151804447906-0.796625216306171i | I119: 6.117318488 | J119: 0 | K119: 0
A120: 117 | B120: 1.17 | C120: 71.79030087 | D120: 3.616259766 | F120: 0 | G120: 0 | H120: 2.64072766962869+0.88792404180559i | I120: 7.761851729 | J120: 0 | K120: 0
A121: 118 | B121: 1.18 | C121: 72.40389319 | D121: 3.647167969 | F121: 0 | G121: 0 | H121: -2.69216947013993-0.893157019948633i | I121: 8.045505918 | J121: 0 | K121: 0
A122: 119 | B122: 1.19 | C122: 73.0174855 | D122: 3.678076172 | F122: 0 | G122: 0 | H122: 2.49565076629512+0.811681704821215i | I122: 6.887099937 | J122: 0 | K122: 0
A123: 120 | B123: 1.2 | C123: 73.63107782 | D123: 3.708984375 | F123: 0 | G123: 0 | H123: -2.07364999803648-0.65129497732285i | I123: 4.724209462 | J123: 0 | K123: 0
A124: 121 | B124: 1.21 | C124: 74.24467013 | D124: 3.739892578 | F124: 0 | G124: 0 | H124: 1.46880190106224+0.427558885314728i | I124: 2.340185625 | J124: 0 | K124: 0
A125: 122 | B125: 1.22 | C125: 74.85826245 | D125: 3.770800781 | F125: 0 | G125: 0 | H125: -0.739581588069123-0.162385680100186i | I125: 0.5733500345 | J125: 0 | K125: 0
A126: 123 | B126: 1.23 | C126: 75.47185476 | D126: 3.801708984 | F126: 0 | G126: 0 | H126: -4.53816853780539E-002-0.117988514188568i | I126: 0.01598078685 | J126: 0 | K126: 0
A127: 124 | B127: 1.24 | C127: 76.08544708 | D127: 3.832617188 | F127: 0 | G127: 0 | H127: 0.813812513904405+0.385454030552063i | I127: 0.8108656175 | J127: 0 | K127: 0
A128: 125 | B128: 1.25 | C128: 76.69903939 | D128: 3.863525391 | F128: 0 | G128: 0 | H128: -1.49650523282989-0.612674088136377i | I128: 2.61489745 | J128: 0 | K128: 0
A129: 126 | B129: 1.26 | C129: 77.31263171 | D129: 3.894433594 | F129: 0 | G129: 0 | H129: 2.03362606545318+0.775680115618975i | I129: 4.737314616 | J129: 0 | K129: 0
A130: 127 | B130: 1.27 | C130: 77.92622402 | D130: 3.925341797 | F130: 0 | G130: 0 | H130: -2.38002932951182-0.85617253750993i | I130: 6.397571023 | J130: 0 | K130: 0
A131: 128 | B131: 1.28 | C131: 78.53981634 | D131: =A131*$G$1*$C$1/$K$1 -> 3.95625 | F131: 0 | G131: =IMABS(F131)^2 -> 0 | H131: 2.50911662864717+0.843310137161514i | I131: =IMABS(H131)^2 -> 7.006838244 | J131: 0 | K131: =IMABS(J131)^2 -> 0
A132: 129 | B132: =A132*($K$1/1024) -> 1.29 | C132: 79.15340865 | D132: 3.987158203 | F132: 0 | G132: 0 | H132: -2.41491057461808-0.734817993372255i | I132: 6.371750567 | J132: 0 | K132: 0
A133: =A132+1 -> 130 | B133: 1.3 | C133: =A133*2*PI()/$K$1 -> 79.76700097 | D133: 4.018066406 | F133: 0 | G133: 0 | H133: 2.11218488756329+0.537306870888731i | I133: 4.750023673 | J133: 0 | K133: 0
A134: 131 | B134: 1.31 | C134: 80.38059329 | D134: 4.048974609 | F134: 0 | G134: 0 | H134: -1.63467458559204-0.265769991249858i | I134: 2.742794689 | J134: 0 | K134: 0
A135: 132 | B135: 1.32 | C135: 80.9941856 | D135: 4.079882813 | F135: 0 | G135: 0 | H135: 1.03156649347165-5.77004747987067E-002i | I135: 1.067458775 | J135: 0 | K135: 0
A136: 133 | B136: 1.33 | C136: 81.60777792 | D136: 4.110791016 | F136: 0 | G136: 0 | H136: -0.362625339690627+0.405862185919624i | I136: 0.2962212509 | J136: 0 | K136: 0
A137: 134 | B137: 1.34 | C137: 82.22137023 | D137: 4.141699219 | F137: 0 | G137: 0 | H137: -0.30756962065422-0.748759531436798i | I137: 0.6552399075 | J137: 0 | K137: 0
A138: 135 | B138: 1.35 | C138: 82.83496255 | D138: 4.172607422 | F138: 0 | G138: 0 | H138: 0.915728636439754+1.05642569441304i | I138: 1.954594183 | J138: 0 | K138: 0
A139: 136 | B139: 1.36 | C139: 83.44855486 | D139: 4.203515625 | F139: 0 | G139: 0 | H139: -1.40572526140806-1.30160172005305i | I139: 3.670230548 | J139: 0 | K139: 0
A140: 137 | B140: 1.37 | C140: 84.06214718 | D140: 4.234423828 | F140: 0 | G140: 0 | H140: 1.73369997558255+1.46222222594347i | I140: 5.143809443 | J140: 0 | K140: 0
A141: 138 | B141: 1.38 | C141: 84.67573949 | D141: 4.265332031 | F141: 0 | G141: 0 | H141: -1.87193389101719-1.52343840567967i | I141: 5.825001068 | J141: 0 | K141: 0
A142: 139 | B142: 1.39 | C142: 85.28933181 | D142: 4.296240234 | F142: 0 | G142: 0 | H142: 1.81115411255095+1.47899128611773i | I142: 5.467694444 | J142: 0 | K142: 0
A143: 140 | B143: 1.4 | C143: 85.90292412 | D143: 4.327148438 | F143: 0 | G143: 0 | H143: -1.56108288902193-1.33180788926087i | I143: 4.21069204 | J143: 0 | K143: 0
A144: 141 | B144: 1.41 | C144: 86.51651644 | D144: 4.358056641 | F144: 0 | G144: 0 | H144: 1.14920817421161+1.09376449137088i | I144: 2.51700019 | J144: 0 | K144: 0
A145: 142 | B145: 1.42 | C145: 87.13010875 | D145: 4.388964844 | F145: 0 | G145: 0 | H145: -0.617918134101327-0.784637927926467i | I145: 0.9974794984 | J145: 0 | K145: 0
A146: 143 | B146: 1.43 | C146: 87.74370107 | D146: 4.419873047 | F146: 0 | G146: 0 | H146: 2.02912968186656E-002+0.43034073984053i | I146: 0.1856048891 | J146: 0 | K146: 0
A147: 144 | B147: 1.44 | C147: 88.35729338 | D147: 4.45078125 | F147: 0 | G147: 0 | H147: 0.585046060569524-6.0601946189999E-002i | I147: 0.3459514889 | J147: 0 | K147: 0
A148: 145 | B148: 1.45 | C148: 88.9708857 | D148: 4.481689453 | F148: 0 | G148: 0 | H148: -1.13950366067187-0.2936937631283i | I148: 1.384724619 | J148: 0 | K148: 0
A149: 146 | B149: 1.46 | C149: 89.58447801 | D149: 4.512597656 | F149: 0 | G149: 0 | H149: 1.59002708179051+0.60326432632936i | I149: 2.892113968 | J149: 0 | K149: 0
A150: 147 | B150: 1.47 | C150: 90.19807033 | D150: 4.543505859 | F150: 0 | G150: 0 | H150: -1.89400429805772-0.843033327371312i | I150: 4.297957472 | J150: 0 | K150: 0
A151: 148 | B151: 1.48 | C151: 90.81166264 | D151: 4.574414062 | F151: 0 | G151: 0 | H151: 2.0231319124236+0.9943396798541i | I151: 5.081774134 | J151: 0 | K151: 0
A152: 149 | B152: 1.49 | C152: 91.42525496 | D152: 4.605322266 | F152: 0 | G152: 0 | H152: -1.96589689211259-1.0465526673438i | I152: 4.960023076 | J152: 0 | K152: 0
A153: 150 | B153: 1.5 | C153: 92.03884727 | D153: 4.636230469 | F153: 0 | G153: 0 | H153: 1.72846270486367+0.9979463647608i | I153: 3.983480269 | J153: 0 | K153: 0
A154: 151 | B154: 1.51 | C154: 92.65243959 | D154: 4.667138672 | F154: 0 | G154: 0 | H154: -1.33389940856556-0.855756234272253i | I154: 2.511606365 | J154: 0 | K154: 0
A155: 152 | B155: 1.52 | C155: 93.2660319 | D155: 4.698046875 | F155: 0 | G155: 0 | H155: 0.819851313324566+0.635416488481968i | I155: 1.07591029 | J155: 0 | K155: 0
A156: 153 | B156: 1.53 | C156: 93.87962422 | D156: 4.728955078 | F156: 0 | G156: 0 | H156: -0.234879052665402-0.359052590777909i | I156: 0.1840869323 | J156: 0 | K156: 0
A157: 154 | B157: 1.54 | C157: 94.49321653 | D157: 4.759863281 | F157: 0 | G157: 0 | H157: -0.366167784440347+5.33719730090959E-002i | I157: 0.1369274139 | J157: 0 | K157: 0
A158: 155 | B158: 1.55 | C158: 95.10680885 | D158: 4.790771484 | F158: 0 | G158: 0 | H158: 0.927306559272129+0.252848685485733i | I158: 0.9238299126 | J158: 0 | K158: 0
A159: 156 | B159: 1.56 | C159: 95.72040116 | D159: 4.821679688 | F159: 0 | G159: 0 | H159: -1.39662226485082-0.531444576909862i | I159: 2.232987089 | J159: 0 | K159: 0
A160: 157 | B160: 1.57 | C160: 96.33399348 | D160: 4.852587891 | F160: 0 | G160: 0 | H160: 1.73103160909334+0.757462497729853i | I160: 3.570219867 | J160: 0 | K160: 0
A161: 158 | B161: 1.58 | C161: 96.94758579 | D161: 4.883496094 | F161: 0 | G161: 0 | H161: -1.90017590304407-0.911437955539102i | I161: 4.441387609 | J161: 0 | K161: 0
A162: 159 | B162: 1.59 | C162: 97.56117811 | D162: 4.914404297 | F162: 0 | G162: 0 | H162: 1.88909438786738+0.981139407115989i | I162: 4.531312142 | J162: 0 | K162: 0
A163: 160 | B163: 1.6 | C163: 98.17477042 | D163: 4.9453125 | F163: 0 | G163: 0 | H163: -1.69944681439618-0.962619903418021i | I163: 3.814756553 | J163: 0 | K163: 0
A164: 161 | B164: 1.61 | C164: 98.78836274 | D164: 4.976220703 | F164: 0 | G164: 0 | H164: 1.34919098372974+0.860481710537177i | I164: 2.560745085 | J164: 0 | K164: 0
A165: 162 | B165: 1.62 | C165: 99.40195505 | D165: 5.007128906 | F165: 0 | G165: 0 | H165: -0.870764672383805-0.687333422778022i | I165: 1.230658349 | J165: 0 | K165: 0
A166: 163 | B166: 1.63 | C166: 100.0155474 | D166: 5.038037109 | F166: 0 | G166: 0 | H166: 0.307958558493771+0.462494763511541i | I166: 0.30873988 | J166: 0 | K166: 0
A167: 164 | B167: 1.64 | C167: 100.6291397 | D167: 5.068945312 | F167: 0 | G167: 0 | H167: 0.288215118515181-0.210074605998722i | I167: 0.1271992946 | J167: 0 | K167: 0
A168: 165 | B168: 1.65 | C168: 101.242732 | D168: 5.099853516 | F168: 0 | G168: 0 | H168: -0.864265015815246-4.33938282071994E-002i | I168: 0.7488370419 | J168: 0 | K168: 0
A169: 166 | B169: 1.66 | C169: 101.8563243 | D169: 5.130761719 | F169: 0 | G169: 0 | H169: 1.36913013425809+0.271535569194568i | I169: 1.94824889 | J169: 0 | K169: 0
A170: 167 | B170: 1.67 | C170: 102.4699166 | D170: 5.161669922 | F170: 0 | G170: 0 | H170: -1.75880276467724-0.450689384545114i | I170: 3.296508086 | J170: 0 | K170: 0
A171: 168 | B171: 1.68 | C171: 103.0835089 | D171: 5.192578125 | F171: 0 | G171: 0 | H171: 2.00024398713245+0.562194363252708i | I171: 4.31703851 | J171: 0 | K171: 0
A172: 169 | B172: 1.69 | C172: 103.6971013 | D172: 5.223486328 | F172: 0 | G172: 0 | H172: -2.07424164768189-0.594191627396575i | I172: 4.655542103 | J172: 0 | K172: 0
A173: 170 | B173: 1.7 | C173: 104.3106936 | D173: 5.254394531 | F173: 0 | G173: 0 | H173: 1.97696287460177+0.542771268360872i | I173: 4.202982857 | J173: 0 | K173: 0
A174: 171 | B174: 1.71 | C174: 104.9242859 | D174: 5.285302734 | F174: 0 | G174: 0 | H174: -1.72007675520481-0.4123565838554i | I174: 3.128701996 | J174: 0 | K174: 0
A175: 172 | B175: 1.72 | C175: 105.5378782 | D175: 5.316210938 | F175: 0 | G175: 0 | H175: 1.32945609269014+0.215289759431938i | I175: 1.813803183 | J175: 0 | K175: 0
A176: 173 | B176: 1.73 | C176: 106.1514705 | D176: 5.347119141 | F176: 0 | G176: 0 | H176: -0.842597780690188+2.93414724195964E-002i | I176: 0.710831942 | J176: 0 | K176: 0
A177: 174 | B177: 1.74 | C177: 106.7650628 | D177: 5.378027344 | F177: 0 | G177: 0 | H177: 0.305017270833383-0.297525025423344i | I177: 0.1815566763 | J177: 0 | K177: 0
A178: 175 | B178: 1.75 | C178: 107.3786552 | D178: 5.408935547 | F178: 0 | G178: 0 | H178: 0.234036615780309+0.562621170356115i | I178: 0.3713157189 | J178: 0 | K178: 0
A179: 176 | B179: 1.76 | C179: 107.9922475 | D179: 5.43984375 | F179: 0 | G179: 0 | H179: -0.726142685789267-0.797917474998302i | I179: 1.163955497 | J179: 0 | K179: 0
A180: 177 | B180: 1.77 | C180: 108.6058398 | D180: 5.470751953 | F180: 0 | G180: 0 | H180: 1.12812076172438+0.979200159104058i | I180: 2.231489405 | J180: 0 | K180: 0
A181: 178 | B181: 1.78 | C181: 109.2194321 | D181: 5.501660156 | F181: 0 | G181: 0 | H181: -1.40589377281435-1.08709825715495i | I181: 3.158319921 | J181: 0 | K181: 0
A182: 179 | B182: 1.79 | C182: 109.8330244 | D182: 5.532568359 | F182: 0 | G182: 0 | H182: 1.53745152093729+1.10897809494416i | I182: 3.593589594 | J182: 0 | K182: 0
A183: 180 | B183: 1.8 | C183: 110.4466167 | D183: 5.563476562 | F183: 0 | G183: 0 | H183: -1.51465694404239-1.04020763358305i | I183: 3.376217579 | J183: 0 | K183: 0
A184: 181 | B184: 1.81 | C184: 111.060209 | D184: 5.594384766 | F184: 0 | G184: 0 | H184: 1.34374619783923+0.884669282310316i | I184: 2.588293583 | J184: 0 | K184: 0
A185: 182 | B185: 1.82 | C185: 111.6738014 | D185: 5.625292969 | F185: 0 | G185: 0 | H185: -1.04449651128662-0.654470301527993i | I185: 1.519304338 | J185: 0 | K185: 0
A186: 183 | B186: 1.83 | C186: 112.2873937 | D186: 5.656201172 | F186: 0 | G186: 0 | H186: 0.648159054934687+0.368875304831041i | I186: 0.556179151 | J186: 0 | K186: 0
A187: 184 | B187: 1.84 | C187: 112.900986 | D187: 5.687109375 | F187: 0 | G187: 0 | H187: -0.194366604378513-5.25585593410373E-002i | I187: 0.04054077906 | J187: 0 | K187: 0
A188: 185 | B188: 1.85 | C188: 113.5145783 | D188: 5.718017578 | F188: 0 | G188: 0 | H188: -0.272682656803536-0.266662084966171i | I188: 0.1454644989 | J188: 0 | K188: 0
A189: 186 | B189: 1.86 | C189: 114.1281706 | D189: 5.748925781 | F189: 0 | G189: 0 | H189: 0.708401431786769+0.560398752489317i | I189: 0.8158793503 | J189: 0 | K189: 0
A190: 187 | B190: 1.87 | C190: 114.7417629 | D190: 5.779833984 | F190: 0 | G190: 0 | H190: -1.07195802401148-0.802334336322453i | I190: 1.792834392 | J190: 0 | K190: 0
A191: 188 | B191: 1.88 | C191: 115.3553552 | D191: 5.810742187 | F191: 0 | G191: 0 | H191: 1.33000647485933+0.970683375723123i | I191: 2.711143439 | J191: 0 | K191: 0
A192: 189 | B192: 1.89 | C192: 115.9689476 | D192: 5.841650391 | F192: 0 | G192: 0 | H192: -1.45966310287096-1.05024209112699i | I192: 3.233624824 | J192: 0 | K192: 0
A193: 190 | B193: 1.9 | C193: 116.5825399 | D193: 5.872558594 | F193: 0 | G193: 0 | H193: 1.45046512550605+1.03383452107508i | I193: 3.172662897 | J193: 0 | K193: 0
A194: 191 | B194: 1.91 | C194: 117.1961322 | D194: 5.903466797 | F194: 0 | G194: 0 | H194: -1.3051451448619-0.923017700555654i | I194: 2.555365525 | J194: 0 | K194: 0
A195: 192 | B195: 1.92 | C195: 117.8097245 | D195: =A195*$G$1*$C$1/$K$1 -> 5.934375 | F195: 0 | G195: =IMABS(F195)^2 -> 0 | H195: 1.03916737752024+0.727977726431382i | I195: =IMABS(H195)^2 -> 1.609820409 | J195: 0 | K195: =IMABS(J195)^2 -> 0
A196: 193 | B196: =A196*($K$1/1024) -> 1.93 | C196: 118.4233168 | D196: 5.965283203 | F196: 0 | G196: 0 | H196: -0.679087040152758-0.466623947379906i | I196: 0.6788971164 | J196: 0 | K196: 0
A197: =A196+1 -> 194 | B197: 1.94 | C197: =A197*2*PI()/$K$1 -> 119.0369091 | D197: 5.996191406 | F197: 0 | G197: 0 | H197: 0.259902526366686+0.162963356119681i | I197: 0.09410637865 | J197: 0 | K197: 0
A198: 195 | B198: 1.95 | C198: 119.6505015 | D198: 6.027099609 | F198: 0 | G198: 0 | H198: 0.178338992912224+0.155095440782773i | I198: 0.05585939214 | J198: 0 | K198: 0
A199: 196 | B199: 1.96 | C199: 120.2640938 | D199: 6.058007812 | F199: 0 | G199: 0 | H199: -0.594356335338244-0.458305838185124i | I199: 0.5633036947 | J199: 0 | K199: 0
A200: 197 | B200: 1.97 | C200: 120.8776861 | D200: 6.088916016 | F200: 0 | G200: 0 | H200: 0.949508799527358+0.718776974564243i | I200: 1.4182073 | J200: 0 | K200: 0
... 826 more rows
